Cogmind - Beta 12 @@@ ROGUE MODE // 2023.09.12 @ 04:15:18 Player: Zirov Result: Destroyed by E7-0NM(z) with Makeshift Shrapnel Gun Performance ------------- Evolutions (1) 500 Regions Visited (5) 1000 Robots Destroyed (61) 305 Value Destroyed (1308) 1308 Prototype IDs (8) 160 Alien Tech Used (0) 0 Bonus (300) 300 TOTAL SCORE: 3573 Bonus ------- Met Imprinter 300 Cogmind --------- Core Integrity 0/400 Matter 287/300 Energy 275/275 System Corruption 5% Temperature Cool (0) Movement Treading (240) Ox1 Location -7/Zion Parts ------- > --- POWER (1) -------- Deuterium Engine > --- PROPULSION (3) --- Light Treads Light Treads > --- UTILITY (3) ------ Disposable Heat Sink High-capacity Storage Unit Improved Targeting Computer > --- WEAPON (2) ------- Pulse Rifle Heavy Hammer > --- INVENTORY (20) --- Deuterium Engine Carbon-fiber Leg Makeshift Leg Large Storage Unit High-capacity Matter Pod (200) Weight Redist. System Seismic Detector Improved Targeting Computer Light Armor Plating Medium Armor Plating Makeshift Hacking Suite Hacking Drone Bay Spread Laser Pulse Rifle Pulse Rifle Heavy Assault Rifle Improved Light Cannon EMP Blaster Mini Grenade Launcher Makeshift Hammer Peak State ------------ > --- POWER ------------ Ion Engine > --- PROPULSION ------- Aluminum Leg Aluminum Leg Aluminum Leg > --- UTILITY ---------- Large Storage Unit Decoy Drone Bay > --- WEAPON ----------- Medium Laser Medium Laser > --- INVENTORY -------- Aluminum Leg Improved Heat Sink Disposable Heat Sink Medium Storage Unit High-capacity Matter Pod Light Armor Plating Medium Laser Rocket Launcher [Rating: 22] Favorites ----------- Power Deuterium Engine Engine Deuterium Engine Propulsion Light Treads Treads Light Treads Leg Aluminum Leg Utility Improved Targeting Computer Device Disposable Heat Sink Storage High-capacity Storage Unit Processor Improved Targeting Computer Protection Light Armor Plating Weapon Pulse Rifle Energy Gun Pulse Rifle Ballistic Gun Light Assault Rifle Launcher Rocket Launcher Impact Weapon Heavy Hammer Build | -11 -10 -10 -9 -9 -7 ------- Run | Jun Mat Min Mat Min Zio Slots Evolved 2 | . . . 2 . . Power . | . . . . . . Propulsion 1 | . . . 1 . . Utility 1 | . . . 1 . . Weapon . | . . . . . . Parts Attached 65 | 6 32 2 24 . 1 Power 13 | 1 7 1 4 . . Engine 13 | 1 7 1 4 . . Core . | . . . . . . Reactor . | . . . . . . Propulsion 20 | 2 11 1 6 . . Treads 4 | . . . 4 . . Leg 16 | 2 11 1 2 . . Wheel . | . . . . . . Hover . | . . . . . . Flight . | . . . . . . Utility 11 | 1 2 . 8 . . Device 5 | . 1 . 4 . . Storage 4 | 1 1 . 2 . . Processor 1 | . . . 1 . . Hackware . | . . . . . . Protection 1 | . . . 1 . . Artifact . | . . . . . . Weapon 21 | 2 12 . 6 . 1 Energy Gun 10 | . 5 . 5 . . Energy Cannon . | . . . . . . Ballistic Gun 9 | 2 7 . . . . Ballistic Cannon . | . . . . . . Launcher 1 | . . . 1 . . Special Weapon . | . . . . . . Impact Weapon 1 | . . . . . 1 Slashing Weapon . | . . . . . . Piercing Weapon . | . . . . . . Special Melee Weapon . | . . . . . . Unidentified Prototypes 1 | . . . 1 . . Parts Lost 9 | . 1 . 7 . 1 Power 2 | . 1 . 1 . . Propulsion 3 | . . . 2 . 1 Utility 1 | . . . 1 . . Weapon 3 | . . . 3 . . Highest Loss Streak 2 | . 1 . 2 . 1 To Critical Strikes . | . . . . . . Average Slot Usage (%) 98 | . 97 100 97 100 100 Engine 11 | . 13 14 10 11 11 Treads 17 | . . . 19 33 33 Leg 13 | . 27 28 13 . . Device 11 | . 12 14 10 11 11 Storage 12 | . 14 14 11 11 11 Processor 6 | . . . 9 11 11 Energy Gun 18 | . 15 28 21 22 14 Ballistic Gun 2 | . 12 . . . . Impact Weapon 2 | . . . . . 7 Naked Turns . | . . . . . . Heaviest Build 56 | 11 20 20 56 56 56 Greatest Support 60 | 20 20 20 60 60 60 Greatest Overweight (x) 3 | 3 1 . 1 . 1 Average Overweight (x) . | . . . . . . Largest Inventory Capacity 20 | 8 10 10 20 20 20 Average Capacity 15 | 7 9 10 16 20 20 Most Carried 20 | 1 10 10 19 20 20 Average Carried 14 | . 8 9 14 19 19 Final Capacity 20 | 8 10 10 20 20 20 Final Carried 20 | 1 10 10 19 20 20 Class Distribution -------------------- 72% | Mutant 27% | Scavenger-Mutant Dominant Class ---------------- Mutant | -10/Materials Mutant | -10/Mines Scavenger-Mutant | -9/Materials Mutant | -9/Mines Mutant | -7/Zion Resources | -11 -10 -10 -9 -9 -7 ----------- Run | Jun Mat Min Mat Min Zio Matter Collected 1302 | 190 671 20 323 . 98 Remotely . | . . . . . . Salvage Created 1926 | . 839 134 868 77 8 Parts 107 | . 42 7 46 10 2 Haulers Intercepted 4 | . 2 . 2 . . Recyclers Shooed . | . . . . . . Parts Field Recycled . | . . . . . . Retrieved Matter . | . . . . . . Parts Self-Destructed . | . . . . . . Prevented . | . . . . . . Kills | -11 -10 -10 -9 -9 -7 ------- Run | Jun Mat Min Mat Min Zio Combat Hostiles Destroyed 46 | . 18 5 16 7 . Guns 45 | . 18 4 16 7 . Classes Destroyed 8 | . 6 . 1 . 1 Worker 4 | . 1 . 3 . . Hauler 4 | . 2 . 2 . . Recycler 2 | . 2 . . . . Watcher 4 | . 2 . 2 . . Swarmer 19 | . 6 3 3 7 . Grunt 21 | . 12 2 7 . . Sentry 6 | . . . 6 . . Zionite 1 | . . . . . 1 Best Kill Streak 7 | . 5 3 7 6 1 Combat Bots Only 6 | . 5 3 5 6 . Max Kills in Single Turn 2 | . 2 1 1 2 1 Gunslinging 1 | . . . . 1 . Exploded . | . . . . . . Melee . | . . . . . . Uniques/NPCs Destroyed . | . . . . . . Combat | -11 -10 -10 -9 -9 -7 -------- Run | Jun Mat Min Mat Min Zio Damage Taken 2434 | . 564 164 1006 156 544 Core 614 | . 152 57 276 31 98 Absorbed by Shields . | . . . . . . Regen/Repaired (Parts) 441 | . . . . . 441 Core Remaining (%) 58 | 100 . 16 . . . Volleys Fired 160 | . 71 11 69 9 . Largest 2 | . 2 2 2 2 . Hottest 126 | . 100 100 126 126 . Shots Fired 318 | . 142 22 135 18 1 Gun 314 | . 142 22 131 18 1 Cannon . | . . . . . . Launcher 4 | . . . 4 . . Special . | . . . . . . Kinetic 58 | . 58 . . . . Thermal 256 | . 84 22 131 18 1 Explosive 4 | . . . 4 . . Electromagnetic . | . . . . . . Robot Hit Streak 25 | . 15 9 25 21 3 Robot Miss Streak 4 | . 2 2 4 3 . Penetration Max . | . . . . . . Secondary Targets 5 | . . 2 2 1 . Max Gunslinging Chain 1 | . . 1 1 1 . Shots Hit Robots 220 | . 103 15 90 11 1 Core Hits 94 | . 46 6 34 7 1 Critical Kills . | . . . . . . Critical Parts Destroyed . | . . . . . . Critical Strikes 23 | . 12 3 7 1 . Burn 23 | . 12 3 7 1 . Melee Attacks 1 | . . . . . 1 Impact 1 | . . . . . 1 Slashing . | . . . . . . Piercing . | . . . . . . Sneak Attacks . | . . . . . . Combat Hostiles . | . . . . . . Follow-up Attacks . | . . . . . . Damage Inflicted 2807 | . 1159 188 1257 187 16 Guns 2802 | . 1159 188 1252 187 16 Cannons . | . . . . . . Explosions . | . . . . . . Melee . | . . . . . . Ramming 5 | . . . 5 . . Kinetic 381 | . 381 . . . . Thermal 2421 | . 778 188 1252 187 16 Explosive . | . . . . . . Electromagnetic . | . . . . . . Impact . | . . . . . . Slashing . | . . . . . . Piercing . | . . . . . . Highest Corruption 5 | . . . 5 5 5 Average Corruption 5 | . . . 5 5 5 Corruption Purged . | . . . . . . Corruption Blocked . | . . . . . . Effects 83 | . . . 34 9 40 Message Errors 17 | . . . 8 1 8 Matter Fused 24 | . . . 8 4 12 Heat Flow Errors 9 | . . . 4 1 4 Energy Discharges 9 | . . . 4 2 3 Parts Fused 2 | . . . 1 . 1 Data Loss (minor) 10 | . . . 3 . 7 Data Loss (major) 8 | . . . 3 1 4 Misfires 2 | . . . 1 . 1 Alerts 2 | . . . 2 . . Overload Shots . | . . . . . . Overflow Damage . | . . . . . . Projectiles . | . . . . . . Explosions . | . . . . . . Melee . | . . . . . . Knockbacks . | . . . . . . Impact . | . . . . . . Kinetic . | . . . . . . Secondary . | . . . . . . Self-Inflicted Damage 37 | . . . 37 . . Shots 2 | . . . 2 . . Rammed 2 | . . . 2 . . Targets Rammed 2 | . . . 2 . . Kicked . | . . . . . . Crushed . | . . . . . . Highest Temperature 217 | . 44 42 217 196 191 Average Temperature 74 | . 20 24 90 107 75 Received Heat Transfer 684 | . 258 63 291 . 72 Siege Activations . | . . . . . . Robots Corrupted . | . . . . . . Combat Hostiles . | . . . . . . Parts Fried . | . . . . . . Impact Corruptions . | . . . . . . Robots Melted 1 | . . 1 . . . Combat Hostiles 1 | . . 1 . . . Parts Melted 27 | . 13 1 12 1 . Heat Transferred 8436 | . 3182 777 3959 481 37 Parts Sabotaged . | . . . . . . Parts Stolen . | . . . . . . Parts Stripped . | . . . . . . Power Chain Reactions . | . . . . . . Missiles Intercepted . | . . . . . . Alert | -11 -10 -10 -9 -9 -7 ------- Run | Jun Mat Min Mat Min Zio Peak Influence 311 | . 245 178 311 289 . Initial 69 | . . 43 . 69 . Average 132 | . 116 75 142 261 . Maximum Alert Level 1 | . 1 . 1 1 . Low Security (%) 77 | 100 93 100 68 13 . Level 1 22 | . 6 . 31 86 . Level 2 . | . . . . . . Level 3 . | . . . . . . Level 4 . | . . . . . . Level 5 . | . . . . . . High Security . | . . . . . . Max Security . | . . . . . . Squads Dispatched 9 | . 4 . 5 . . Investigation 2 | . 1 . 1 . . Extermination . | . . . . . . Reinforcement 7 | . 3 . 4 . . Assault . | . . . . . . Garrison . | . . . . . . Intercept . | . . . . . . Searches Triggered . | . . . . . . Construction Impeded . | . . . . . . Haulers Reinforced . | . . . . . . Active Scanning Responses . | . . . . . . Cargo Convoy Interrupts . | . . . . . . Stealth | -11 -10 -10 -9 -9 -7 --------- Run | Jun Mat Min Mat Min Zio Distress Signals 4 | . 2 . 2 . . Communications Jammed . | . . . . . . Distress Signals . | . . . . . . Times Spotted 92 | . 34 5 32 10 11 Peak Tracking Total 11 | . 5 3 6 4 11 Tactical Retreats 8 | . 1 . 6 1 . Traps | -11 -10 -10 -9 -9 -7 ------- Run | Jun Mat Min Mat Min Zio Traps Triggered 6 | . 5 . 1 . . Indirectly . | . . . . . . Trap Hack Attempts . | . . . . . . Triggered . | . . . . . . Disarmed . | . . . . . . Reprogrammed . | . . . . . . Reused . | . . . . . . Traps Extracted . | . . . . . . Installed . | . . . . . . Triggered . | . . . . . . Machines | -11 -10 -10 -9 -9 -7 ---------- Run | Jun Mat Min Mat Min Zio Machines Disabled 1 | . . . . 1 . Max in Single Turn 1 | . . . . 1 . Machines Repaired . | . . . . . . Machines Sabotaged . | . . . . . . Overloaded Fab Kills . | . . . . . . Hacking | -11 -10 -10 -9 -9 -7 --------- Run | Jun Mat Min Mat Min Zio Machines Accessed 14 | . 6 1 6 1 . Terminals 11 | . 6 . 5 . . Fabricators . | . . . . . . Repair Stations . | . . . . . . Recycling Units . | . . . . . . Scanalyzers 1 | . . . 1 . . Garrison Access . | . . . . . . Total Hacks 35 | . 17 1 16 1 . Successful 14 | . 4 1 8 1 . Failed 21 | . 13 . 8 . . Catastrophic 2 | . . . 2 . . Database Lockouts . | . . . . . . Manual 12 | . 11 . . . 1 Terminals 31 | . 17 . 14 . . Fabricators . | . . . . . . Repair Stations . | . . . . . . Recycling Units . | . . . . . . Scanalyzers 2 | . . . 2 . . Garrison Access . | . . . . . . Terminal Hacks 12 | . 4 1 6 1 . Prototype ID Bank 4 | . 2 . 2 . . Open Door 2 | . . 1 . 1 . Branch Access Points 1 | . 1 . . . . Locate Traps 3 | . 1 . 2 . . Zone Layout 2 | . . . 2 . . Fabricator Hacks . | . . . . . . Repair Station Hacks . | . . . . . . Recycling Unit Hacks . | . . . . . . Scanalyzer 2 | . . . 2 . . Insert Component 1 | . . . 1 . . Analyze 1 | . . . 1 . . Garrison Access Hacks . | . . . . . . Unauthorized Hacks . | . . . . . . Terminals . | . . . . . . Fabricators . | . . . . . . Repair Stations . | . . . . . . Recycling Units . | . . . . . . Scanalyzers . | . . . . . . Garrison Access . | . . . . . . Data Cores Recovered . | . . . . . . Used . | . . . . . . Hacking Detections 11 | . 6 . 5 . . Full Trace Events 2 | . 2 . . . . Feedback Events . | . . . . . . Feedback Blocked . | . . . . . . Robot Schematics Acquired 3 | . . . . . 3 Robots Built . | . . . . . . Authchips . | . . . . . . Time . | . . . . . . Total Robot Build Rating . | . . . . . . Part Schematics Acquired 17 | . . . 1 . 16 Parts Built . | . . . . . . Authchips . | . . . . . . Time . | . . . . . . Total Part Build Rating . | . . . . . . Parts Repaired . | . . . . . . Time . | . . . . . . Parts Recycled . | . . . . . . Recycled Matter . | . . . . . . Retrieved Matter . | . . . . . . Retrieved Components . | . . . . . . Parts Scanalyzed 1 | . . . 1 . . Part Schematics Acquired 1 | . . . 1 . . Parts Damaged . | . . . . . . Bothacking | -11 -10 -10 -9 -9 -7 ------------ Run | Jun Mat Min Mat Min Zio Used RIF Installer . | . . . . . . Robots Hacked . | . . . . . . Non-combat . | . . . . . . Combat . | . . . . . . Robot Hacks Applied . | . . . . . . Relay Couplers Released . | . . . . . . Fabnet Peak Effective % . | . . . . . . Robots Rewired . | . . . . . . Allies Hacked . | . . . . . . Hacks Repelled . | . . . . . . Allies | -11 -10 -10 -9 -9 -7 -------- Run | Jun Mat Min Mat Min Zio Total Allies . | . . . . . . Largest Group . | . . . . . . Highest-Rated Group . | . . . . . . Highest-Rated Ally . | . . . . . . Total Orders . | . . . . . . Ally Attacks . | . . . . . . Total Damage . | . . . . . . Kills . | . . . . . . Allies Corrupted . | . . . . . . Allies Melted . | . . . . . . Intel | -11 -10 -10 -9 -9 -7 ------- Run | Jun Mat Min Mat Min Zio Robot Analysis Total . | . . . . . . Derelict Logs Recovered 5 | . . 2 . 2 1 Drone Launches . | . . . . . . Drone Recoveries . | . . . . . . Exploration | -11 -10 -10 -9 -9 -7 ------------- Run | Jun Mat Min Mat Min Zio Turns Passed 5822 | 56 1369 574 1640 351 1832 Spaces Moved 3455 | 39 863 417 821 199 1116 Core 9 | 9 . . . . . Treads 1756 | . . . 441 199 1116 Legs 1690 | 30 863 417 380 . . Wheels . | . . . . . . Hover . | . . . . . . Flight . | . . . . . . Fastest Speed 50 | 50 120 120 120 160 160 Average Speed 141 | 120 120 120 144 160 160 Slowest Speed 240 | 200 190 120 240 160 240 Overloaded Moves . | . . . . . . Propulsion Burnouts . | . . . . . . Robots Hopped . | . . . . . . Cave-ins Triggered 1 | . . . 1 . . Exploration Rate (%) 60 | 3 98 67 60 47 86 Regions Visited 5 Branch Regions 3 Pre-discovered Areas 3 | . . 1 . 1 1 Known Exits Taken 1 | . 1 . . . . Unknown Exits Taken 4 | 1 . 1 1 1 . Scrap Searched 2 | . . . . . 2 Spaces Dug 40 | . . . 40 . . Terrain Destroyed 40 | . . . 40 . . Melee . | . . . . . . Projectile . | . . . . . . AOE 40 | . . . 40 . . Terrain Rammed . | . . . . . . Walls Destroyed . | . . . . . . Machines Disabled . | . . . . . . Actions | -11 -10 -10 -9 -9 -7 --------- Run | Jun Mat Min Mat Min Zio Total 4100 | 45 1064 471 1143 214 1163 Wait 341 | . 66 35 201 6 33 Move 3449 | 38 862 416 819 198 1116 Hop . | . . . . . . Pick Up 41 | 1 14 2 17 1 6 Fast Attach 20 | 6 12 . 2 . . Attach 16 | . 5 . 11 . . Detach 4 | . . . 4 . . Swap 29 | . 15 2 11 . 1 Drop 36 | . 19 5 6 . 6 Fire 160 | . 71 11 69 9 . Melee 1 | . . . . . 1 Ram . | . . . . . . Kick . | . . . . . . Crush 2 | . . . 2 . . Escape Stasis 1 | . . . 1 . . Rewire . | . . . . . . Trap . | . . . . . . Miscellaneous . | . . . . . . Route ------- -11/Junkyard -10/Materials (discovered 5 exits: *Mat x3 / *Min x2) -10/Mines -9/Materials (discovered 2 exits: [*Mat] / *Min) -9/Mines (discovered 3 exits: [*Mat] / Exi / *Zio) -7/Zion (discovered 1 exit: [*Pro]) History --------- Turn | Location | Event 16 | -11/Junkyard | Discovered new exit (range 16) 57 | -11/Junkyard | Entered Materials 259 | -10/Materials | Discovered new exit (range 3) 309 | -10/Materials | Build established: Mutant 337 | -10/Materials | Discovered new exit (range 14) 649 | -10/Materials | Discovered new exit (range 15) 789 | -10/Materials | Identified exit to Mines 791 | -10/Materials | Discovered new exit (range 16) 1036 | -10/Materials | Core integrity fell below 50% 1213 | -10/Materials | Discovered new exit (range 11) 1426 | -10/Materials | Entered Mines 1478 | -10/Mines | Discovered new exit (range 5) 1570 | -10/Mines | Received a Rocket Launcher from a helpful Derelict 1593 | -10/Mines | Learned Materials terminal intel 1701 | -10/Mines | Learned location of Storage (-7) 1727 | -10/Mines | Core integrity fell below 20% 1781 | -10/Mines | Found the Drone Emporium 1788 | -10/Mines | Found Prototype Device 2000 | -10/Mines | Entered Materials 2000 | -9/Materials | Evolved 2 slots: Propulsion x1, Utility x1 2001 | -9/Materials | Loaded intel: 11 terminal locations 2005 | -9/Materials | Identified Decoy Drone Bay 2034 | -9/Materials | Build established: Scavenger-Mutant 2273 | -9/Materials | Crushed by falling debris 2724 | -9/Materials | Discovered new exit (range 12) 2818 | -9/Materials | Core integrity fell below 50% 3191 | -9/Materials | Build established: Mutant 3463 | -9/Materials | Discovered new exit (range 16) 3640 | -9/Materials | Entered Mines 3651 | -9/Mines | Met a Derelict bent on vengeance 3668 | -9/Mines | Learned location of Zion (-7) 3749 | -9/Mines | Met a Derelict who couldn't figure out how to use a Trap Extractor 3948 | -9/Mines | Discovered new exit (range 16) 3954 | -9/Mines | A Derelict revealed a hidden shortcut to a safe place 3978 | -9/Mines | Identified exit to Exiles 3991 | -9/Mines | Entered Zion 4062 | -7/Zion | Given the Hacking Drone Bay 4066 | -7/Zion | Found Prototype Device 4246 | -7/Zion | Discovered new exit (range 9) 4299 | -7/Zion | Visited the Megawrench Repair Shop 4302 | -7/Zion | Megawrench repaired 8 parts 4533 | -7/Zion | Learned Factory emergency access door positions 4755 | -7/Zion | Acquired unknown access codes intercepted by a Zionite 4977 | -7/Zion | Learned location of Quarantine (-3) 5523 | -7/Zion | Given A8's code to call for help 5537 | -7/Zion | Received a hallucinogenic algorithm 5686 | -7/Zion | Learned 8 Factory zone layouts 5766 | -7/Zion | Attacked by Zionites 5799 | -7/Zion | Spotted YI-VKW(B) 5803 | -7/Zion | Spotted 8P-0MJ(B) 5807 | -7/Zion | Core integrity fell below 20% 5823 | -7/Zion | Destroyed by E7-0NM(z) with Makeshift Shrapnel Gun Last Messages --------------- 05788_ F1-1I0(z) pulls a Mak. Hammer out of the Twisted Machinery. 74-FF4(z) bursts out of the Twisted Machinery. 05800_ 74-FF4(z) pulls a Mak. Hammer out of the Twisted Machinery. 05803_ 6A-171(m) repairs 8P-0MJ(B). 05805_ 6A-171(m) repairs Reflective Plating. 05807_ 6A-171(m) repairs Hvy. Armor Plating. U5-VHK(z) bursts out of the Twisted Machinery. 05810_ 6A-171(m) fits Backup Laser III on F1-1I0(z). 05811_ U5-VHK(z) pulls a Mak. Laser out of the Twisted Machinery. 05812_ Acquired 2 matter. 05812_ 6A-171(m) fits Backup Power III on F1-1I0(z). 05814_ 6A-171(m) fits Backup Propulsion III on F1-1I0(z). 05815_ Critical hit (Burn: +37). 05816_ 6A-171(m) fits Backup Plating III on F1-1I0(z). 05817_ F1-1I0(z) destroyed. 05819_ Critical hit (Burn: +37). 05821_ Lgt. Treads destroyed. 05821_ 74-FF4(z) suffers critical hit (Destroy). 05821_ 74-FF4(z) destroyed. 05822_ 6A-171(m) fits Backup Laser III on FC-83S(z). Map ----- +----------------------------------------------------+ | """ "##???????????????????????????????????### # | | """ "#???????????????????????????????????## | | "#" "#???????????????????????????????????# < | | ""#" ""???????????????????????????????????# | | """"" ""????????????????????????????????????# | | ""#"" "#????????????????????????????????????# | | """" "##???????????????????????????????????# | | """ ""#???????????????????????????????????## # | | """ """"???????????????????????????????????# ## | | """"???????????????????????????????????# #? | | """""#???????????????????????????######## #? | | "##?????????????????########## ## #? | | ""#?????????????????#""""#" #? | | """ """?????????????????##" " # #? | | """""" ""?##???????????????#" ## ## # | | ""#""" "##"#???????????????#"" ## ###### | | """""" """"#???????????????## " ## #????? | | *"""" ""#???????????????#""""#" ## ##????? | | " "##???????????????######## #??#### | | ""#######????###???????## #??# | | """# "######;#####???# ##??# | | "" "#"#BB """"" """""#???# ###???### | | "" " """" "###BB " "" ##### ##??????## | | "" """""" # *! #;;## #??????## | | " """"" z =% % ##??????# | | z %= z z@% ###?????# | | " " "# g !%mz ! ##### ##????# | | ""#" "##; "" """"#???## ##??## | | """" "###BB """""""""#????### #### | | """ #?#BB ############??###### | | "" "#######??????????#### ##### | | "" """#???????????????#"" #### | | "" """"##???????????????#" ! ### ## | | """ "##????????????????#"" ### | | " """"" ""?????????????????### #?# | | """"#"""" "##??????????????????## #######?# | | "####"""" "#????????????????????#####???????# # | | ""###"""" "#???????????????????????????????## # | | """#???"" ""???????????????????????????????# # | | """#""?? "????????????????????????????????### # | | """"" "??????????????????????????????????# # | | ""?????????????????????????????????## # | | """????????????????????????????????# | | " "" """????????????????????????????????# | | """"""" ""????????????????????????????????## # | | ""#""" "???????????????????????????????## | | """" ????????????????????????????????# # | | """ "" ?????????????????????????????????## | | """ ????????????????????????????????# | | """" ????????????????????????????????# # | +----------------------------------------------------+ Best States ------------- Heat Dissipation 42 Coolant Potential 50 Energy Generation 14 Energy Capacity 275 Matter Stores 300 Matter Capacity 300 Sight Range 16 Terrain Scan Density 10 Armor Coverage 150 Evasion (%) 55 Targeting Accuracy 6 Recoil Reduction 3 Item Schematics ----------------- Med. Armor Plating | -9/Materials | Scanalyzed Adv. Heat Sink | -7/Zion | Archive Launcher Guidance Computer | -7/Zion | Archive Adv. Plasma Cannon | -7/Zion | Archive Remote Force Field | -7/Zion | Archive Remote Datajack | -7/Zion | Archive Proton Cannon | -7/Zion | Archive Ripper | -7/Zion | Archive Mak. Hover Unit | -7/Zion | Archive Adv. Terrain Scan Processor | -7/Zion | Archive Coil Gun | -7/Zion | Archive Mak. Hacking Suite | -7/Zion | Archive Hvy. Battle Rifle | -7/Zion | Archive Hvy. Plasma Cannon | -7/Zion | Archive Thermic Laser | -7/Zion | Archive Imp. Medium Armor Plating | -7/Zion | Archive Imp. KE Penetrator | -7/Zion | Archive Robot Schematics ------------------ A-02 Transporter | -7/Zion | Archive W-25 Informer | -7/Zion | Archive I-25 Savior | -7/Zion | Archive Fabricated ------------ Nothing Alien Tech Used ----------------- None Achievements -------------- None Challenges ------------ None Game ------ Seed ComponentWardroneMount Manual? 0 Play Time 00:51:46 Cumulative 82.6 hours Start 2023.09.11 @ 04:56:30 End 2023.09.12 @ 04:15:18 Sessions 7 Manual Loads 0 Difficulty Rogue Special Mode None Game No. 93 Rogue 93 Adventurer 0 Explorer 0 Win Type - Total 0 Types 0/0/0/0/0/0/0/0/0 Lore% 32 Gallery% 37 Achievement% 28 Wizard Run 0 Options --------- ASCII 1 Keyboard 1 Movement Numpad Keybinds 0 Fullscreen 1 Font 18/SmallcapsGlow Map View 76x50 Tactical HUD 1 Map Filters NONE Filters NONE Steam 1 RUN: 92372958-8a97-4032-b3af-a02f052586d8